bitfinex-derivatives/quotes_ETHF0:USTF0_20250405
["timestamp","ask_amount","ask_price","bid_price","bid_amount"]
[1743863924174,0.00838668,1791.9,1791.8,3.00969809]
[1743863924376,0.00838668,1791.9,1791.8,3.00969816]
[1743863924574,0.00838668,1791.9,1791.8,2.27613]
[1743863924767,0.00838668,1791.9,1791.8,3.00970159]
[1743863924971,0.00838668,1791.9,1791.8,3.73753051]
[1743863925173,0.00838668,1791.9,1791.8,3.73756835]
[1743863925474,0.00838668,1791.9,1791.8,6.94536835]
[1743863925663,0.00838668,1791.9,1791.8,10.55036835]
[1743863928672,3.2078,1792.2,1792.1,0.7815]
[1743863930079,3.2078,1792.2,1792.1,2.9272]
[1743863931577,1.95283,1793.0,1792.1,2.9272]
[1743863931578,27.06440947,1793.8,1793.5,0.78086]
[1743863931873,23.85660947,1793.8,1793.7,0.7808]
[1743863932179,23.85660947,1793.8,1793.6,2.18791]
[1743863932374,23.85660947,1793.8,1793.5,0.00836284]
[1743863932375,3.2078,1793.7,1793.5,0.00836284]
[1743863932574,3.2078,1793.7,1793.6,0.78084]
[1743863932779,2.5,1793.7,1793.5,0.00836284]
[1743863932976,27.84519947,1793.8,1793.5,0.00836284]
[1743863933380,27.06440947,1793.8,1793.5,0.00836284]
[1743863933581,27.84516947,1793.8,1793.5,0.00836284]
[1743863933782,0.78084,1793.6,1793.5,0.00836284]
[1743863933982,0.78082,1793.7,1793.5,0.00836284]
[1743863934583,0.78083,1793.7,1793.5,0.00836284]
[1743863936182,4.52683,1793.7,1793.5,0.00836284]
[1743863936581,1.4116,1793.6,1793.5,0.00836284]
[1743863937086,3.2078,1793.8,1793.5,0.00836284]
[1743863937284,3.2078,1793.8,1793.5,2.32792284]
[1743863937582,1.4116,1793.7,1793.6,1.5387]
[1743863938183,2.1924,1793.7,1793.6,1.5387]
[1743863938380,2.1924,1793.7,1793.5,0.00836284]
[1743863938581,1.4116,1793.6,1793.5,0.00836284]
[1743863939983,2.19244,1793.6,1793.5,0.00836284]
[1743863940487,1.4116,1793.6,1793.5,0.00836284]
[1743863941094,2.19244,1793.6,1793.5,0.00836284]
[1743863941288,7.90024,1793.6,1793.5,0.00836284]
[1743863941691,9.38214,1793.6,1793.5,0.00836284]
[1743863942685,6.88214,1793.6,1793.5,0.00836284]
[1743863943494,0.78102,1793.2,1793.1,3.2078]
[1743863943889,0.78109,1793.1,1792.9,1.4933]
[1743863944089,3.06439,1793.1,1792.9,2.27444]
[1743863944293,2.2833,1793.1,1793.0,0.78111]
[1743863945497,2.2833,1793.1,1792.9,2.28278284]
[1743863945692,3.06437,1793.1,1792.9,2.28278284]
[1743863945898,0.78111,1793.0,1792.9,0.00836284]
[1743863946203,1.4007,1793.0,1792.9,0.78951284]
[1743863946592,1.4007,1793.0,1792.9,2.18631284]
[1743863950304,2.18181,1793.0,1792.9,1.40516284]
[1743863950598,2.18181,1793.0,1792.9,0.00836284]
[1743863952402,2.18181,1793.0,1792.9,1.50476284]
[1743863958405,2.18181,1793.0,1792.9,2.28591284]
[1743863958604,2.18181,1793.0,1792.9,1.50476284]
[1743863958805,2.18181,1793.0,1792.9,2.28591284]
[1743863959301,1.4007,1793.0,1792.9,2.28591284]
[1743863959506,4.49531335,1793.2,1793.0,0.78111]
[1743863959708,0.78106,1793.1,1793.0,3.72191]
[1743863960409,0.78106,1793.1,1793.0,3.72830579]
[1743863960609,0.78106,1793.1,1793.0,4.50937579]
[1743863960908,0.78106,1793.1,1793.0,4.50939059]
[1743863961413,0.78106,1793.1,1793.0,2.26872059]
[1743863961612,2.90766,1793.1,1793.0,2.26872059]
[1743863965211,4.6266,1793.1,1792.7,0.7688]
[1743863965413,0.78124,1792.7,1792.6,2.1127]
[1743863965611,0.78124,1792.7,1792.6,2.90204271]
[1743863966113,5.42914,1792.7,1792.6,2.1127]
[1743863966313,5.42914,1792.7,1792.6,2.19889892]
[1743863966517,6.16554,1792.7,1792.6,1.4093]
[1743863966817,0.78128,1792.6,1792.5,0.00836284]
[1743863967011,2.20108,1792.6,1792.5,0.00836284]
[1743863967518,2.20108,1792.6,1792.5,1.45826284]
[1743863968216,2.20108,1792.6,1792.5,2.24830234]
[1743863968417,2.20108,1792.6,1792.5,1.45826284]
[1743863969007,2.20108,1792.6,1792.5,2.24804072]
[1743863969917,2.20108,1792.6,1792.5,2.24809759]
[1743863970918,4.47828,1792.6,1792.5,2.24809759]
[1743863971416,4.47828,1792.6,1792.5,2.24796531]
[1743863971719,4.47828,1792.6,1792.5,2.24800966]
[1743863973115,0.78128,1792.6,1792.5,2.24800966]
[1743863975418,0.78128,1792.6,1792.5,2.24829739]
[1743863976627,0.78128,1792.6,1792.5,2.24822771]
[1743863978922,0.78128,1792.6,1792.5,2.24834528]
[1743863982528,0.78128,1792.6,1792.5,2.24859175]
[1743863982720,0.78128,1792.6,1792.5,3.01299175]
[1743863983217,0.78128,1792.6,1792.5,3.79431175]
[1743863983414,0.78126,1792.7,1792.5,3.01299175]
[1743863983618,0.78126,1792.7,1792.6,2.30372891]
[1743863984027,0.78126,1792.7,1792.6,2.30372507]
[1743863986431,0.78126,1792.7,1792.6,2.30386392]
[1743863986821,2.20326,1792.7,1792.6,2.30386392]
[1743863987118,2.20326,1792.7,1792.6,1.5134]
[1743863987319,0.78128,1792.6,1792.5,0.00836284]
[1743863987518,2.20328,1792.6,1792.5,2.2839659]
[1743863988129,2.20328,1792.6,1792.5,2.28394673]
[1743863990828,0.78128,1792.6,1792.5,2.28394673]
[1743863993933,0.78128,1792.6,1792.5,3.06526673]
[1743863994132,0.78128,1792.6,1792.5,2.28394673]
[1743863994332,0.78128,1792.6,1792.5,3.06526673]
[1743863994525,0.78128,1792.6,1792.5,2.8340873]
[1743863994725,0.78125,1792.7,1792.6,0.78127]
[1743863994927,0.78125,1792.7,1792.6,2.98775389]
[1743863995126,0.78125,1792.7,1792.6,2.20648389]
[1743863995624,0.78125,1792.7,1792.6,2.7566443]
[1743863998831,0.7812,1792.8,1792.7,0.78123]
[1743863999033,0.7812,1792.8,1792.7,2.98032681]
[1743864000236,0.7812,1792.8,1792.7,3.76156681]
[1743864000427,0.7812,1792.8,1792.7,2.98032681]
[1743864001935,0.7812,1792.8,1792.7,2.98024327]
[1743864004527,0.7812,1792.8,1792.7,2.24564327]
[1743864004727,2.9354,1792.8,1792.7,2.24564327]
[1743864004933,2.9354,1792.8,1792.7,0.79234327]
[1743864004934,3.6478,1792.8,1792.7,0.79234327]
[1743864005130,6.8556,1792.8,1792.7,0.79234327]
[1743864006035,3.6478,1792.8,1792.7,0.79234327]
[1743864007430,6.8556,1792.8,1792.7,0.79234327]
[1743864008335,0.78128,1792.6,1792.5,0.00836284]
[1743864008534,0.78148,1792.2,1792.1,0.6936]
[1743864008729,0.78148,1792.2,1792.1,2.03604542]
[1743864009129,0.78148,1792.2,1792.1,2.03634756]
[1743864009336,0.78148,1792.2,1792.1,1.48607094]
[1743864009940,5.41878,1792.2,1792.1,2.20857094]
[1743864010438,6.16358,1792.2,1792.1,2.20857094]
[1743864010638,6.16358,1792.2,1792.1,0.79247094]
[1743864010937,0.7815,1792.1,1792.0,1.42446284]
[1743864011138,2.211,1792.1,1792.0,2.21609117]
[1743864012234,2.211,1792.1,1792.0,1.42446284]
[1743864012637,0.7815,1792.1,1792.0,1.42446284]
[1743864012937,0.7815,1792.1,1792.0,2.21495198]
[1743864015240,0.7815,1792.1,1792.0,2.97545198]
[1743864018237,0.7815,1792.1,1792.0,2.97430073]
[1743864018445,0.7815,1792.1,1792.0,2.18496284]
[1743864018833,2.2316,1792.1,1792.0,2.18496284]
[1743864021845,0.78984284,1792.2,1792.0,2.97378549]
[1743864022046,0.78984284,1792.2,1792.1,1.505]
[1743864025245,0.78984284,1792.2,1792.1,2.29365863]
[1743864025440,0.78984284,1792.2,1792.1,3.07522006]
[1743864025646,0.78984284,1792.2,1792.1,2.2865]
[1743864026062,0.78984284,1792.2,1792.1,1.505]
[1743864026352,0.78984284,1792.2,1792.1,2.2938225]
[1743864027146,0.78984284,1792.2,1792.1,2.29392046]
[1743864027854,0.78984284,1792.2,1792.1,2.29405559]
[1743864028050,0.00836284,1792.2,1792.1,3.07555559]
[1743864028254,0.00836284,1792.2,1792.1,6.28335559]
[1743864029155,0.00836284,1792.2,1792.1,6.28327423]
[1743864030958,0.00836284,1792.2,1792.1,6.28358486]
[1743864032756,0.00836284,1792.2,1792.1,6.28403468]
[1743864033359,0.00836284,1792.2,1792.1,6.83259308]
[1743864034060,0.00836284,1792.2,1792.1,6.28403468]
[1743864034261,0.00836284,1792.2,1792.1,6.83250416]
[1743864034656,0.00836284,1792.2,1792.1,6.83268425]
[1743864036657,8.3106,1792.8,1792.1,12.96068425]
[1743864036856,0.78134,1792.5,1792.4,3.2078]
[1743864037050,0.78134,1792.5,1792.4,6.21383468]
[1743864038160,4.41134,1792.5,1792.4,2.24353468]
[1743864038358,5.13924,1792.5,1792.4,0.78973468]
[1743864038557,6.59434,1792.5,1792.4,0.78973468]
[1743864039061,0.78141,1792.3,1792.2,1.4538]
[1743864039263,0.78141,1792.3,1792.2,2.24425065]
[1743864040365,0.78139,1792.4,1792.2,3.02569065]
[1743864040558,4.41135,1792.5,1792.3,3.66395065]
[1743864040757,4.41135,1792.5,1792.4,2.95635065]
[1743864041662,4.41135,1792.5,1792.4,2.1659]
[1743864041866,4.41135,1792.5,1792.4,2.95618608]
[1743864042258,3.63,1792.5,1792.4,3.73755608]
[1743864042863,0.78967284,1792.6,1792.4,3.73755608]
[1743864043162,0.78967284,1792.6,1792.5,2.18598608]
[1743864043566,0.78967284,1792.6,1792.5,2.18575794]
[1743864045369,0.78967284,1792.6,1792.5,2.18556496]
[1743864048977,0.78967284,1792.6,1792.5,2.18533516]
[1743864050667,0.00836284,1792.6,1792.5,2.96665516]
[1743864050864,0.78964284,1792.6,1792.5,2.96665516]
[1743864051267,0.78964284,1792.6,1792.5,2.18533516]
[1743864052565,0.78964284,1792.6,1792.5,2.18550512]
[1743864054475,0.78964284,1792.6,1792.5,2.18539308]
[1743864055479,0.78964284,1792.6,1792.5,2.96671308]
[1743864056678,0.78964284,1792.6,1792.5,2.18539308]
[1743864058080,0.78964284,1792.6,1792.5,2.18538918]
[1743864059776,0.78964284,1792.6,1792.5,2.96670918]
[1743864059985,0.78964284,1792.6,1792.5,2.18538918]
[1743864060587,0.78964284,1792.6,1792.5,2.96670918]
[1743864060780,0.00836284,1792.6,1792.5,2.96670918]
[1743864060981,0.78964284,1792.6,1792.5,2.18538918]
[1743864061185,0.78964284,1792.6,1792.5,2.18527703]
[1743864061683,0.78964284,1792.6,1792.5,2.96659703]
[1743864061885,0.00836284,1792.6,1792.5,2.96659703]
[1743864062086,0.78964284,1792.6,1792.5,2.96659703]
[1743864062686,0.78964284,1792.6,1792.5,2.18527703]
[1743864062984,0.78964284,1792.6,1792.5,2.18556423]
[1743864063287,0.78964284,1792.6,1792.5,2.73403785]
[1743864064186,0.78964284,1792.6,1792.5,2.18556423]
[1743864064779,0.78964284,1792.6,1792.5,2.18631485]
[1743864066676,0.78964284,1792.6,1792.5,2.18643253]
[1743864070187,0.78964284,1792.6,1792.5,2.18685022]
[1743864070990,2.29514284,1792.6,1792.5,2.18685022]
[1743864072288,0.78964284,1792.6,1792.5,3.51776663]
[1743864073096,0.00836284,1792.6,1792.5,3.51776663]
[1743864073895,0.78964284,1792.6,1792.5,3.51810081]
[1743864074496,0.78964284,1792.6,1792.5,3.51811046]
[1743864075600,0.78964284,1792.6,1792.5,3.51818541]
[1743864077592,0.78964284,1792.6,1792.5,2.73686541]
[1743864080698,0.78964284,1792.6,1792.5,3.51818541]
[1743864080895,0.00836284,1792.6,1792.5,3.51818541]
[1743864081094,0.00836284,1792.6,1792.5,2.72679113]
[1743864081303,0.00836284,1792.6,1792.5,3.51855093]
[1743864081702,0.78964284,1792.6,1792.5,2.73723093]
[1743864081999,0.78964284,1792.6,1792.5,3.51855093]
[1743864082499,0.00836284,1792.6,1792.5,3.51855093]
[1743864082802,0.00836284,1792.6,1792.5,6.72635093]
[1743864083098,0.00836284,1792.6,1792.5,47.52615521]
[1743864086601,0.00836284,1792.6,1792.5,47.52508027]
[1743864087603,0.00836284,1792.6,1792.5,6.72508027]
[1743864087900,0.00836284,1792.6,1792.5,5.38482]
[1743864088206,0.00836284,1792.6,1792.5,6.72453564]
[1743864088406,0.00836284,1792.6,1792.5,6.72449648]
[1743864089307,1.52396284,1792.6,1792.5,6.72449648]
[1743864090105,1.52396284,1792.6,1792.5,3.51669648]
[1743864090308,1.52396284,1792.6,1792.5,3.51674448]
[1743864090500,0.00836284,1792.6,1792.5,3.51674448]
[1743864091207,1.16231284,1792.7,1792.6,0.78128]
[1743864091505,2.67791284,1792.7,1792.6,2.98152077]
[1743864091705,2.2122,1792.7,1792.6,2.98152077]
[1743864092010,1.5156,1792.7,1792.6,2.98152077]
[1743864092212,1.5156,1792.7,1792.6,2.98161809]
[1743864092803,2.29684,1792.7,1792.6,2.98161809]
[1743864093212,2.29684,1792.7,1792.6,2.20033809]
[1743864093905,2.29684,1792.7,1792.6,2.20042648]
[1743864094113,2.29684,1792.7,1792.6,0.79092648]
[1743864095509,0.78128,1792.6,1792.5,1.5356]
[1743864095710,0.78128,1792.6,1792.5,2.32662904]
[1743864097609,0.78128,1792.6,1792.5,2.32660429]
[1743864099115,0.78125,1792.7,1792.5,6.86501338]
[1743864099311,0.78125,1792.7,1792.6,4.31149086]
[1743864099518,0.00828335,1792.8,1792.7,0.78124]
[1743864099817,0.00828335,1792.8,1792.7,3.77602531]
[1743864100023,0.00828335,1792.8,1792.7,4.32514616]
[1743864100207,0.00828335,1792.8,1792.7,3.77602531]
[1743864100405,0.00828335,1792.8,1792.7,4.32516207]
[1743864100612,0.00828335,1792.8,1792.7,4.32515932]
[1743864100915,0.00828335,1792.8,1792.7,4.32503137]
[1743864102518,0.78947335,1792.8,1792.7,4.32503137]
[1743864102716,0.78947335,1792.8,1792.7,2.99465759]
[1743864103610,0.00828335,1792.8,1792.7,4.32504193]
[1743864106414,0.00828335,1792.8,1792.7,4.32445436]
[1743864108118,0.00828335,1792.8,1792.7,4.32434898]
[1743864108518,0.00828335,1792.8,1792.7,4.32430371]
[1743864110011,0.00828335,1792.8,1792.7,4.3242917]
[1743864110418,0.00828335,1792.8,1792.7,4.32417609]
[1743864111418,0.00828335,1792.8,1792.7,4.32405525]
[1743864114221,0.00828335,1792.8,1792.7,45.12405525]
[1743864115517,0.00828335,1792.8,1792.7,4.32405525]
[1743864117317,0.00828335,1792.8,1792.7,4.32340729]
[1743864119017,0.00828335,1792.8,1792.7,4.32338148]
[1743864120725,0.00828335,1792.8,1792.7,4.32334662]
[1743864121127,0.00828335,1792.8,1792.7,4.32332888]
[1743864123728,0.00828335,1792.8,1792.7,4.32304029]
[1743864124727,0.78095,1793.4,1793.2,0.78102]
[1743864125027,0.78093,1793.4,1793.3,3.81419228]
[1743864125623,2.25693,1793.4,1793.3,3.81419228]
[1743864125825,2.25693,1793.4,1793.3,3.05259228]
[1743864126128,2.25693,1793.4,1793.3,0.78949228]
[1743864127428,0.78098,1793.3,1793.2,0.00836284]
[1743864127630,2.18858,1793.3,1793.2,0.79742125]
[1743864127829,2.18858,1793.3,1793.2,2.26172125]
[1743864128129,1.4076,1793.3,1793.2,3.04274125]
[1743864128528,1.4076,1793.3,1793.2,4.54464125]
[1743864128725,5.08862,1793.5,1793.3,0.78098]
[1743864129028,6.50422,1793.5,1793.3,2.31578]
[1743864129223,5.7233,1793.5,1793.3,2.31578]
[1743864129422,5.7233,1793.5,1793.4,1.5348]
[1743864129630,6.50422,1793.5,1793.4,1.5348]
[1743864129832,0.78097,1793.4,1793.2,2.29128284]
[1743864130128,2.19657,1793.4,1793.3,0.78898064]
[1743864130923,0.78098,1793.3,1793.2,2.29206284]
[1743864131119,2.19658,1793.3,1793.2,3.080952]
[1743864132731,2.19658,1793.3,1793.2,3.08070638]
[1743864134727,2.19658,1793.3,1793.2,3.080697]
[1743864134931,0.78098,1793.3,1793.2,3.080697]
[1743864135333,0.78098,1793.3,1793.2,3.861717]
[1743864136026,2.26466,1793.4,1793.3,0.78098]
[1743864136228,0.78096,1793.4,1793.3,2.17903416]
[1743864136428,0.78096,1793.4,1793.3,2.91272431]
[1743864137127,0.78086,1793.6,1793.4,0.7809]
[1743864137326,0.78086,1793.6,1793.5,2.87382431]
[1743864138037,0.78083,1793.7,1793.5,3.65468431]
[1743864138340,0.78083,1793.7,1793.6,2.1632]
[1743864141233,0.78078,1793.8,1793.6,2.9509738]
[1743864141539,0.78076,1793.8,1793.7,1.44]
[1743864144341,2.95896,1793.8,1793.7,1.44]
[1743864144943,0.78076,1793.8,1793.7,1.44]
[1743864147544,0.78076,1793.8,1793.7,2.22754356]
[1743864147939,6.8138,1794.0,1793.7,2.2208]
[1743864148141,0.78071,1793.9,1793.8,2.1577]
[1743864149140,3.2078,1794.0,1793.8,2.93845]
[1743864149340,3.2078,1794.0,1793.9,2.22371]
[1743864149548,0.78065,1794.1,1794.0,0.78067]
[1743864149844,3.9529,1794.4,1794.0,2.23017716]
[1743864150138,0.78051,1794.4,1794.2,0.78057]
[1743864150339,0.78051,1794.4,1794.3,1.4353]
[1743864150539,0.78051,1794.4,1794.3,2.9726]
[1743864150741,1.4871,1794.6,1794.3,2.9726]
[1743864150940,1.4871,1794.6,1794.4,1.5373]
[1743864151146,0.78045,1794.5,1794.4,1.5373]
[1743864152545,0.78032,1794.8,1794.5,0.78044]
[1743864152846,0.78037,1794.7,1794.6,1.5373]
[1743864153047,3.2078,1794.9,1794.6,2.2771]
[1743864153239,3.2078,1794.9,1794.7,0.7348]
[1743864153440,0.78031,1794.9,1794.7,2.98585]
[1743864153843,0.78028,1794.9,1794.8,1.4707]
[1743864154243,4.38526,1795.0,1794.8,1.4707]
[1743864154642,0.78028,1794.9,1794.8,1.4707]
[1743864156351,5.7078,1794.9,1794.2,6.8118]
[1743864156549,0.78045,1794.6,1794.5,1.4639]
[1743864157053,0.7804,1794.7,1794.5,2.24434]
[1743864157350,0.7804,1794.7,1794.6,1.4639]
[1743864158552,0.7804,1794.7,1794.6,2.226]
[1743864160749,0.7804,1794.7,1794.6,1.4639]
[1743864161145,2.2684,1794.7,1794.6,1.4639]
[1743864161746,0.78045,1794.5,1794.4,3.904]
[1743864161946,0.78045,1794.5,1794.4,1.4549]
[1743864162148,4.38645,1794.5,1794.4,1.4549]
[1743864162454,0.7805,1794.4,1794.3,0.7251]
[1743864162651,0.78054,1794.3,1794.2,2.1989]
[1743864163148,0.78054,1794.3,1794.2,1.5027]
[1743864163548,1.53624,1794.3,1794.2,1.5027]
[1743864165255,0.78054,1794.3,1794.2,1.5027]
[1743864169456,0.78053,1794.4,1794.2,1.5027]
[1743864169656,0.78053,1794.4,1794.3,0.7258]
[1743864170057,0.78053,1794.4,1794.3,2.1767]
[1743864172558,0.78053,1794.4,1794.3,2.96253256]
[1743864172752,0.78053,1794.4,1794.3,2.1767]
[1743864177564,0.78053,1794.4,1794.3,1.4509]
[1743864177750,2.95093,1794.4,1794.3,1.4509]
[1743864178263,7.59528,1794.5,1794.3,3.0190809]
[1743864178464,0.78042,1794.6,1794.4,1.56807224]
[1743864178664,0.78042,1794.6,1794.5,0.738]
[1743864178864,0.78042,1794.6,1794.5,1.5257634]
[1743864179063,2.20062,1794.6,1794.5,0.738]
[1743864179264,2.20062,1794.6,1794.5,2.2467]
[1743864179464,5.40842,1794.6,1794.5,1.5087]
[1743864179658,0.7805,1794.4,1794.3,0.738]
[1743864179966,0.7805,1794.4,1794.3,1.52622295]
[1743864180463,1.5307,1794.4,1794.3,1.52622295]
[1743864180961,1.5307,1794.4,1794.3,1.52624933]
[1743864181167,2.9634,1794.4,1794.3,0.78824933]
[1743864182467,2.9634,1794.4,1794.3,0.78816205]
[1743864182669,2.9634,1794.4,1794.3,2.29386205]
[1743864184970,2.9634,1794.4,1794.3,2.29416443]
[1743864186775,2.9634,1794.4,1794.3,2.29464329]
[1743864187772,2.9634,1794.4,1794.3,1.5057]
[1743864187974,2.9634,1794.4,1794.3,2.29475225]
[1743864188272,2.2132,1794.4,1794.3,2.29475225]
[1743864188676,0.7805,1794.4,1794.3,2.29475225]
[1743864189579,0.78048,1794.5,1794.3,3.62323828]
[1743864189779,0.78048,1794.5,1794.4,3.08425225]
[1743864190380,0.78048,1794.5,1794.4,3.63227923]
[1743864190681,0.78048,1794.5,1794.4,3.63229965]
[1743864191084,0.78048,1794.5,1794.4,3.08425225]
[1743864191580,0.78048,1794.5,1794.4,3.63233322]
[1743864191982,0.78048,1794.5,1794.4,3.08425225]
[1743864194781,0.78048,1794.5,1794.4,3.86475225]
[1743864194975,0.78048,1794.5,1794.4,3.08425225]
[1743864195175,0.78048,1794.5,1794.4,3.08442712]
[1743864195477,5.15864,1794.8,1794.4,3.86492712]
[1743864195677,0.78041,1794.6,1794.5,2.97532712]
[1743864198182,0.78041,1794.6,1794.5,2.27632712]
[1743864198386,2.29711,1794.6,1794.5,2.27632712]
[1743864198684,5.90111,1794.6,1794.5,0.78922712]
[1743864198879,5.90111,1794.6,1794.2,0.7473]
[1743864198880,0.78054,1794.3,1794.2,0.7473]
[1743864199079,3.98834,1794.3,1794.2,1.53682977]
[1743864199277,7.59234,1794.3,1794.2,0.78952977]
[1743864199680,8.34584,1794.3,1794.2,0.78952977]
[1743864200071,9.74884,1794.3,1794.2,2.31842977]
[1743864200479,9.74884,1794.3,1794.2,2.31838147]
[1743864201182,9.74884,1794.3,1794.2,1.5289]
[1743864201374,9.74884,1794.3,1793.8,3.66873728]
[1743864201375,0.78071,1793.9,1793.8,1.5289]
[1743864201581,7.59651,1793.9,1793.8,0.78954489]
[1743864201781,0.78084,1793.6,1793.5,1.4773]
[1743864202079,4.39284,1793.6,1793.5,2.23420544]
[1743864202284,4.39284,1793.6,1793.5,2.23153349]
[1743864202590,5.87884,1793.6,1793.5,1.4443]
[1743864202785,5.87884,1793.6,1793.5,2.23046407]
[1743864204284,5.87884,1793.6,1793.5,1.4443]
[1743864213193,2.26684,1793.6,1793.5,1.4443]
[1743864213388,0.78084,1793.6,1793.5,1.4443]
[1743864213795,7.60199284,1793.7,1793.5,2.22519]
[1743864213997,0.78084,1793.6,1793.5,2.22519]
[1743864214304,0.78084,1793.6,1793.4,1.55366284]
[1743864214799,0.78089,1793.5,1793.4,0.77276284]
[1743864220000,0.78089,1793.5,1793.4,1.55369284]
[1743864220202,4.38887,1793.6,1793.4,1.55369284]
[1743864220799,0.78089,1793.5,1793.4,1.55369284]
[1743864221899,0.78089,1793.5,1793.4,0.77276284]
[1743864224103,2.30639,1793.5,1793.4,0.77276284]
[1743864224502,2.30639,1793.5,1793.4,0.00836284]
[1743864224704,3.06279,1793.5,1793.4,0.00836284]
[1743864225211,6.27059,1793.5,1793.4,0.00836284]
[1743864225503,0.78106,1793.1,1793.0,0.7479]
[1743864225703,0.78106,1793.1,1793.0,1.53204167]
[1743864226013,0.78106,1793.1,1793.0,0.7479]
[1743864226412,0.78106,1793.1,1793.0,1.53244052]
[1743864226915,0.78106,1793.1,1793.0,2.23464052]
[1743864227515,0.78106,1793.1,1793.0,2.23535231]
[1743864228013,0.78106,1793.1,1793.0,1.48745231]
[1743864228210,0.78106,1793.1,1793.0,0.7022]
[1743864228410,1.49916,1793.1,1793.0,1.48797018]
[1743864228602,0.78111,1793.0,1792.9,0.00836284]
[1743864228810,0.78111,1793.0,1792.9,1.54509989]
[1743864229303,0.78111,1793.0,1792.9,0.75946284]
[1743864229511,2.26791,1793.0,1792.9,0.00836284]
[1743864229808,5.87391,1793.0,1792.9,0.00836284]
[1743864230611,5.87391,1793.0,1792.9,2.22338416]
[1743864231509,5.87391,1793.0,1792.9,1.43736284]
[1743864234313,4.38711,1793.0,1792.9,1.43736284]
[1743864234716,4.38711,1793.0,1792.9,2.2229238]
[1743864235617,4.38711,1793.0,1792.9,2.22292811]
[1743864236413,0.78109,1793.1,1792.9,5.50407811]
[1743864236614,0.78109,1793.1,1793.0,1.4165]
[1743864236915,0.78109,1793.1,1793.0,2.20193743]
[1743864237118,0.78109,1793.1,1793.0,1.4165]
[1743864237915,2.23569,1793.1,1793.0,1.4165]
[1743864238217,5.84169,1793.1,1793.0,1.4165]
[1743864240513,4.38709,1793.1,1793.0,1.4165]
[1743864240709,4.38709,1793.1,1793.0,2.1815]
[1743864241514,0.78109,1793.1,1793.0,2.1815]
[1743864242217,0.78109,1793.1,1793.0,2.96685736]
[1743864242611,0.78109,1793.1,1793.0,2.1815]
[1743864243617,0.78105,1793.2,1793.0,3.74781344]
[1743864243805,0.78105,1793.2,1793.1,2.163]
[1743864248125,0.78105,1793.2,1793.1,1.407]
[1743864248313,2.21385,1793.2,1793.1,1.407]
[1743864248817,2.21385,1793.2,1792.9,0.00836284]
[1743864248818,0.78111,1793.0,1792.9,0.00836284]
[1743864249019,0.78111,1793.0,1792.9,2.29869314]
[1743864249411,0.78111,1793.0,1792.9,2.29873052]
[1743864250621,0.78109,1793.1,1792.9,2.29873052]
[1743864250823,0.78109,1793.1,1793.0,2.26411768]
[1743864251023,0.78109,1793.1,1793.0,3.04522768]
[1743864251321,3.606,1793.5,1793.0,5.31216574]
[1743864251514,3.606,1793.5,1793.2,3.2078]
[1743864251716,4.38692,1793.5,1793.3,3.77338768]
[1743864251912,4.38692,1793.5,1793.4,2.99461768]
[1743864253020,4.38692,1793.5,1793.4,2.99506468]
[1743864254322,4.38692,1793.5,1793.4,2.99525236]
[1743864254717,4.38692,1793.5,1793.4,2.99529489]
[1743864256224,4.38692,1793.5,1793.4,2.2082]
[1743864256425,4.38692,1793.5,1793.4,2.99517729]
[1743864258327,4.38692,1793.5,1793.4,2.99495728]
[1743864260228,4.38692,1793.5,1793.4,2.2082]
[1743864260427,4.38692,1793.5,1793.4,2.99492769]
[1743864260727,0.78098,1793.3,1793.2,3.2078]
[1743864260925,0.78098,1793.3,1793.2,3.99465871]
[1743864261322,2.22388,1793.3,1793.2,3.99465871]
[1743864261522,2.22388,1793.3,1793.2,5.52065871]
[1743864261930,0.78098,1793.3,1793.2,6.30167871]
[1743864262228,0.78096,1793.4,1793.2,5.52065871]
[1743864262426,0.78096,1793.4,1793.3,3.02875871]
[1743864263725,2.24546,1793.4,1793.3,3.02875871]
[1743864263927,2.97466,1793.4,1793.3,3.02875871]
[1743864264232,2.97466,1793.4,1793.3,2.31285871]
[1743864264431,0.78098,1793.3,1793.2,3.2078]
[1743864264632,0.78102,1793.2,1793.1,0.7101]
[1743864264929,0.78102,1793.2,1793.1,0.78727267]
[1743864265231,0.78106,1793.1,1793.0,2.0948]
[1743864265423,0.78106,1793.1,1793.0,2.88218105]
[1743864265828,0.78111,1793.0,1792.9,0.00836284]
[1743864266028,2.93471,1793.0,1792.9,0.79591718]
[1743864266230,2.93471,1793.0,1792.9,0.00836284]
[1743864275826,2.93471,1793.0,1792.4,3.2078]
[1743864275827,0.78146,1792.2,1792.0,3.2078]
[1743864276131,0.78144,1792.3,1792.2,0.7582]
[1743864276830,3.98924,1792.3,1792.2,0.7582]
[1743864277038,0.78145,1792.2,1792.1,0.72276284]
[1743864277236,2.20135,1792.2,1792.1,0.00836284]
[1743864278834,0.78145,1792.2,1792.1,0.00836284]
[1743864280236,3.2078,1792.3,1791.5,3.2078]
[1743864280437,0.78168,1791.7,1791.6,1.4297]
[1743864283137,0.78166,1791.8,1791.6,4.71141]
[1743864283334,0.78166,1791.8,1791.7,2.2401]
[1743864283540,0.78166,1791.8,1791.7,4.7401]
[1743864283744,0.78166,1791.8,1791.7,2.2401]
[1743864286140,0.78172,1791.6,1791.5,0.00836284]
[1743864288043,0.78172,1791.6,1791.5,0.77046284]
[1743864291444,0.78172,1791.6,1791.5,2.23566284]
[1743864292153,0.7817,1791.7,1791.5,5.51742284]
[1743864292354,0.7817,1791.7,1791.6,2.1643]
[1743864293048,0.7817,1791.7,1791.6,2.94602]
[1743864294151,0.7817,1791.7,1791.6,2.1643]
[1743864294956,0.7817,1791.7,1791.6,2.94602]
[1743864296257,0.78167,1791.7,1791.6,6.15382]
[1743864297255,7.5664,1792.1,1791.6,6.15445102]
[1743864297564,0.7816,1791.9,1791.7,1.5259]
[1743864297955,0.7816,1791.9,1791.8,0.7119]
[1743864298859,0.7816,1791.9,1791.8,2.2378]
[1743864299763,0.7816,1791.9,1791.8,3.01943]
[1743864299963,0.78157,1792.0,1791.8,2.2378]
[1743864300163,0.78157,1792.0,1791.9,1.4264]
[1743864301866,0.78152,1792.1,1791.9,2.20799]
[1743864302164,0.78152,1792.1,1792.0,2.176]
[1743864302564,0.78148,1792.2,1792.0,2.95754]